Workbook

Sheet QuickBooks Desktop Export Tips

Sheet Sheet1
E1: AARON HORTENBURY | K1: AUDRA M MOORE | Q1: BILLY ALDRIDGE | W1: BRYAN FRANKLIN {director} | AC1: CHRISTOPHER S COX | AI1: DAKOTA J BAATZ | AO1: DAVID L HEDGES | AU1: ELIJAH T STIGERS | BA1: FRANKIE W MASTERS | BG1: GUSTAVO LARA | BM1: JEREMY T CARMACK | BS1: JERRY RUBLE {SECRETARY} | BY1: JOHN T MCGINNIS | CE1: NOAH AUGUSTINE-SMITH | CK1: RONDA K HILL | CQ1: ROY M LEWIS | CW1: TARA M PEYTON | DC1: WHITNEY SMITH | DI1: TOTAL
E2: Hours | G2: Rate | I2: Jan - Dec 20 | K2: Hours | M2: Rate | O2: Jan - Dec 20 | Q2: Hours | S2: Rate | U2: Jan - Dec 20 | W2: Hours | Y2: Rate | AA2: Jan - Dec 20 | AC2: Hours | AE2: Rate | AG2: Jan - Dec 20 | AI2: Hours | AK2: Rate | AM2: Jan - Dec 20 | AO2: Hours | AQ2: Rate | AS2: Jan - Dec 20 | AU2: Hours | AW2: Rate | AY2: Jan - Dec 20 | BA2: Hours | BC2: Rate | BE2: Jan - Dec 20 | BG2: Hours | BI2: Rate | BK2: Jan - Dec 20 | BM2: Hours | BO2: Rate | BQ2: Jan - Dec 20 | BS2: Hours | BU2: Rate | BW2: Jan - Dec 20 | BY2: Hours | CA2: Rate | CC2: Jan - Dec 20 | CE2: Hours | CG2: Rate | CI2: Jan - Dec 20 | CK2: Hours | CM2: Rate | CO2: Jan - Dec 20 | CQ2: Hours | CS2: Rate | CU2: Jan - Dec 20 | CW2: Hours | CY2: Rate | DA2: Jan - Dec 20 | DC2: Hours | DE2: Rate | DG2: Jan - Dec 20 | DI2: Hours | DK2: Rate | DM2: Jan - Dec 20
A3: Employee Wages, Taxes and Adjustments
C4: Gross Pay
D5: MANAGEMENT | I5: 0 | O5: 0 | U5: 0 | AA5: 0 | AG5: 0 | AM5: 0 | AS5: 81030.91 | AY5: 0 | BE5: 0 | BK5: 0 | BQ5: 62030.95 | BW5: 0 | CC5: 0 | CI5: 0 | CO5: 0 | CU5: 0 | DA5: 57953.66 | DG5: 0 | DM5: =ROUND(I5+O5+U5+AA5+AG5+AM5+AS5+AY5+BE5+BK5+BQ5+BW5+CC5+CI5+CO5+CU5+DA5+DG5,5) -> 201015.52
D6: 1000-109-DISTRIBUTION MAINS | I6: 0 | O6: 0 | U6: 0 | AA6: 0 | AG6: 0 | AM6: 0 | AS6: 0 | AY6: 0 | BA6: 5 | BC6: 18 | BE6: 90 | BK6: 0 | BQ6: 0 | BW6: 0 | CC6: 0 | CI6: 0 | CO6: 0 | CQ6: 4 | CS6: 18.5 | CU6: 74 | DA6: 0 | DG6: 0 | DI6: =ROUND(E6+K6+Q6+W6+AC6+AI6+AO6+AU6+BA6+BG6+BM6+BS6+BY6+CE6+CK6+CQ6+CW6+DC6,5) -> 9 | DM6: 164
D7: 1000-111 NEW METERS | E7: 74 | G7: 13.5 | I7: 999 | O7: 0 | U7: 0 | AA7: 0 | AC7: 156.5 | AE7: 18.5 | AG7: 2752.75 | AI7: 37.5 | AK7: 14 | AM7: 525 | AS7: 0 | AY7: 0 | BE7: 0 | BG7: 193 | BI7: 13 | BK7: 2509 | BQ7: 0 | BW7: 0 | CC7: 0 | CE7: 109.5 | CG7: 13 | CI7: 1423.5 | CO7: 0 | CQ7: 276 | CS7: 18.5 | CU7: 4842 | DA7: 0 | DG7: 0 | DI7: =ROUND(E7+K7+Q7+W7+AC7+AI7+AO7+AU7+BA7+BG7+BM7+BS7+BY7+CE7+CK7+CQ7+CW7+DC7,5) -> 846.5 | DM7: 13051.25
D8: 1000-720 - MAINT/STRUCTURE | I8: 0 | O8: 0 | U8: 0 | AA8: 0 | AG8: 0 | AM8: 0 | AS8: 0 | AY8: 0 | BE8: 0 | BK8: 0 | BQ8: 0 | BW8: 0 | CC8: 0 | CI8: 0 | CO8: 0 | CU8: 0 | DA8: 0 | DG8: 0 | DM8: 0
D9: 1000-724 MAINT/DIST MAIN | E9: 14 | G9: 13.5 | I9: 189 | O9: 0 | Q9: 2 | S9: 14.5 | U9: 29 | AA9: 0 | AC9: 33 | AE9: 17.5 | AG9: 577.5 | AI9: 21 | AK9: 14 | AM9: 294 | AS9: 0 | AY9: 0 | BA9: 10 | BC9: 18 | BE9: 180 | BG9: 28 | BI9: 13 | BK9: 364 | BQ9: 0 | BW9: 0 | CC9: 0 | CE9: 30 | CG9: 13 | CI9: 390 | CO9: 0 | CQ9: 54.5 | CS9: 18.5 | CU9: 965.75 | DA9: 0 | DG9: 0 | DI9: =ROUND(E9+K9+Q9+W9+AC9+AI9+AO9+AU9+BA9+BG9+BM9+BS9+BY9+CE9+CK9+CQ9+CW9+DC9,5) -> 192.5 | DM9: 2989.25
D10: 1000-726-MAINT SERVICE METERS | E10: 2 | G10: 13.5 | I10: 27 | O10: 0 | U10: 0 | AA10: 0 | AC10: 31 | AE10: 18.5 | AG10: 565.5 | AI10: 8 | AK10: 14 | AM10: 112 | AS10: 0 | AY10: 0 | BA10: 44 | BC10: 19.5 | BE10: 858 | BG10: 20 | BI10: 13 | BK10: 260 | BQ10: 0 | BW10: 0 | CC10: 0 | CE10: 36 | CG10: 13 | CI10: 468 | CK10: 52 | CM10: 18.35 | CO10: 934.2 | CQ10: 51 | CS10: 18.5 | CU10: 903.5 | DA10: 0 | DG10: 0 | DI10: 244 | DM10: 4128.2
D11: 1000-727-MAINT HYDRANTS | I11: 0 | O11: 0 | U11: 0 | AA11: 0 | AG11: 0 | AM11: 0 | AS11: 0 | AY11: 0 | BE11: 0 | BK11: 0 | BQ11: 0 | BW11: 0 | CC11: 0 | CI11: 0 | CO11: 0 | CQ11: 8 | CS11: 18.5 | CU11: 148 | DA11: 0 | DG11: 0 | DI11: 8 | DM11: 148
D12: 1000-728-MAINT WATER SALES | I12: 0 | O12: 0 | U12: 0 | AA12: 0 | AG12: 0 | AI12: 12 | AK12: 14 | AM12: 168 | AS12: 0 | AY12: 0 | BE12: 0 | BK12: 0 | BQ12: 0 | BW12: 0 | CC12: 0 | CI12: 0 | CO12: 0 | CQ12: 9 | CS12: 17.5 | CU12: 157.5 | DA12: 0 | DG12: 0 | DI12: 21 | DM12: 325.5
D13: 1000-801 HOLIDAY | E13: 48 | G13: 14.5 | I13: 656 | K13: 184 | M13: 19.75 | O13: 3550 | Q13: 72 | S13: 14.5 | U13: 1044 | AA13: 0 | AC13: 120 | AE13: 18.5 | AG13: 2156 | AI13: 80 | AK13: 14 | AM13: 1120 | AS13: 0 | AU13: 56 | AW13: 13 | AY13: 728 | BA13: 104 | BC13: 19.5 | BE13: 1944 | BG13: 72 | BI13: 13 | BK13: 936 | BQ13: 0 | BW13: 0 | CC13: 0 | CE13: 72 | CG13: 13 | CI13: 936 | CK13: 144 | CM13: 18.35 | CO13: 2562.4 | CQ13: 112 | CS13: 18.5 | CU13: 2016 | DA13: 0 | DC13: 112 | DE13: 18.75 | DG13: 2016 | DI13: 1176 | DM13: 19664.4
D14: 1000-802-COLLECTIONS/ADMIN | E14: 614.5 | G14: 14.5 | I14: 8509.25 | K14: 1628 | M14: 19.75 | O14: 30300.53 | Q14: 668 | S14: 14.5 | U14: 9686 | AA14: 0 | AC14: 893 | AE14: 18.5 | AG14: 15889.5 | AI14: 542.5 | AK14: 14 | AM14: 7595 | AS14: 0 | AU14: 325 | AW14: 13 | AY14: 4225 | BA14: 799.5 | BC14: 19.5 | BE14: 14455.5 | BG14: 533 | BI14: 13 | BK14: 6929 | BQ14: 0 | BW14: 0 | CC14: 0 | CE14: 600 | CG14: 13 | CI14: 7800 | CK14: 1390 | CM14: 18.35 | CO14: 24489.5 | CQ14: 849 | CS14: 18.5 | CU14: 15132 | DA14: 0 | DC14: 1826 | DE14: 18.75 | DG14: 32259.77 | DI14: 10668.5 | DM14: 177271.05
D15: 1000-820-MAINT GENERAL PROP | I15: 0 | O15: 0 | Q15: 16 | S15: 14.5 | U15: 232 | AA15: 0 | AC15: 8 | AE15: 18.5 | AG15: 148 | AK15: 14 | AM15: 0 | AS15: 0 | AY15: 0 | BE15: 0 | BG15: 3 | BI15: 13 | BK15: 39 | BQ15: 0 | BW15: 0 | CC15: 0 | CE15: 8 | CG15: 13 | CI15: 104 | CO15: 0 | CU15: 0 | DA15: 0 | DG15: 0 | DI15: 35 | DM15: 523
D16: 2000-109-DISTRIBUTION MAINS | E16: 6 | G16: 13.5 | I16: 81 | O16: 0 | U16: 0 | AA16: 0 | AC16: 36 | AE16: 18.5 | AG16: 642 | AI16: 16 | AK16: 14 | AM16: 224 | AS16: 0 | AY16: 0 | BA16: 8 | BC16: 18 | BE16: 144 | BK16: 0 | BQ16: 0 | BW16: 0 | CC16: 0 | CI16: 0 | CO16: 0 | CU16: 0 | DA16: 0 | DG16: 0 | DI16: 66 | DM16: 1091
D17: 2000-111-NEW METERS | E17: 5 | G17: 13.5 | I17: 67.5 | O17: 0 | U17: 0 | AA17: 0 | AC17: 60 | AE17: 18.5 | AG17: 1060 | AI17: 31 | AK17: 14 | AM17: 434 | AS17: 0 | AY17: 0 | BE17: 0 | BG17: 20 | BI17: 13 | BK17: 260 | BQ17: 0 | BW17: 0 | CC17: 0 | CE17: 71 | CG17: 13 | CI17: 923 | CO17: 0 | CQ17: 27 | CS17: 18.5 | CU17: 480.5 | DA17: 0 | DG17: 0 | DI17: 214 | DM17: 3225
D18: 2000-113 NEW HYDRANTS | I18: 0 | O18: 0 | U18: 0 | AA18: 0 | AG18: 0 | AI18: 4 | AK18: 14 | AM18: 56 | AS18: 0 | AY18: 0 | BE18: 0 | BK18: 0 | BQ18: 0 | BW18: 0 | CC18: 0 | CI18: 0 | CO18: 0 | CU18: 0 | DA18: 0 | DG18: 0 | DI18: 4 | DM18: 56
D19: 2000-724 MAINT DIST MAINS | E19: 14.5 | G19: 14.5 | I19: 201.25 | O19: 0 | U19: 0 | AA19: 0 | AC19: 39 | AE19: 18.5 | AG19: 694.5 | AI19: 6 | AK19: 14 | AM19: 84 | AS19: 0 | AY19: 0 | BA19: 2 | BC19: 18 | BE19: 36 | BG19: 27 | BI19: 13 | BK19: 351 | BQ19: 0 | BW19: 0 | CC19: 0 | CE19: 35.5 | CG19: 13 | CI19: 461.5 | CO19: 0 | CQ19: 26 | CS19: 18.5 | CU19: 465 | DA19: 0 | DG19: 0 | DI19: 150 | DM19: 2293.25
D20: 2000-726 MAINT SERVICE METERS | I20: 0 | O20: 0 | U20: 0 | AA20: 0 | AC20: 8 | AE20: 18.5 | AG20: 148 | AM20: 0 | AS20: 0 | AY20: 0 | BA20: 35.5 | BC20: 19.5 | BE20: 692.25 | BG20: 34 | BI20: 13 | BK20: 442 | BQ20: 0 | BW20: 0 | CC20: 0 | CE20: 2 | CG20: 13 | CI20: 26 | CK20: 26 | CM20: 18.35 | CO20: 459.1 | CQ20: 26 | CS20: 18.5 | CU20: 471 | DA20: 0 | DG20: 0 | DI20: 131.5 | DM20: 2238.35
D21: 2000-727-MAINT HYDRANTS | E21: 4 | G21: 13.5 | I21: 54 | O21: 0 | U21: 0 | AA21: 0 | AG21: 0 | AM21: 0 | AS21: 0 | AY21: 0 | BE21: 0 | BK21: 0 | BQ21: 0 | BW21: 0 | CC21: 0 | CI21: 0 | CO21: 0 | CQ21: 4 | CS21: 17.5 | CU21: 70 | DA21: 0 | DG21: 0 | DI21: 8 | DM21: 124
D22: 2000-728-WATER SALES | I22: 0 | O22: 0 | U22: 0 | AA22: 0 | AG22: 0 | AI22: 12 | AK22: 14 | AM22: 168 | AS22: 0 | AY22: 0 | BE22: 0 | BK22: 0 | BQ22: 0 | BW22: 0 | CC22: 0 | CI22: 0 | CO22: 0 | CU22: 0 | DA22: 0 | DG22: 0 | DI22: 12 | DM22: 168
D23: 2000-802 COLLECTION/ADMIN | E23: 349 | G23: 14.5 | I23: 4783.5 | O23: 0 | Q23: 366 | S23: 14.5 | U23: 5307 | AA23: 0 | AC23: 369 | AE23: 18.5 | AG23: 6541.5 | AI23: 354 | AK23: 14 | AM23: 4956 | AS23: 0 | AU23: 160 | AW23: 13 | AY23: 2080 | BA23: 632.5 | BC23: 19.5 | BE23: 11440.5 | BG23: 208 | BI23: 13 | BK23: 2704 | BQ23: 0 | BW23: 0 | CC23: 0 | CE23: 176 | CG23: 13 | CI23: 2288 | CK23: 218 | CM23: 18.35 | CO23: 3790.3 | CQ23: 549.5 | CS23: 18.5 | CU23: 9758.75 | DA23: 0 | DG23: 0 | DI23: 3382 | DM23: 53649.55
D24: 2000-820 MAINT GENERAL PROP | I24: 0 | O24: 0 | U24: 0 | AA24: 0 | AC24: 8 | AE24: 18.5 | AG24: 148 | AM24: 0 | AS24: 0 | AY24: 0 | BE24: 0 | BK24: 0 | BQ24: 0 | BW24: 0 | CC24: 0 | CE24: 8 | CG24: 13 | CI24: 104 | CO24: 0 | CU24: 0 | DA24: 0 | DG24: 0 | DI24: 16 | DM24: 252
D25: Hourly Sick | E25: 55.5 | G25: 14.5 | I25: 754.25 | K25: 121 | M25: 19.75 | O25: 2244.25 | U25: 0 | AA25: 0 | AC25: 239.5 | AE25: 18.5 | AG25: 4226.25 | AI25: 28.5 | AK25: 14 | AM25: 399 | AS25: 0 | AU25: 4 | AW25: 13 | AY25: 52 | BA25: 408 | BC25: 19.5 | BE25: 7920 | BK25: 0 | BQ25: 0 | BW25: 0 | CC25: 0 | CE25: 18 | CG25: 13 | CI25: 234 | CK25: 116.5 | CM25: 18.35 | CO25: 2058.78 | CQ25: 17 | CS25: 18.5 | CU25: 306.5 | DA25: 0 | DC25: 73.5 | DE25: 17.25 | DG25: 1267.89 | DI25: 1081.5 | DM25: 19462.92
D26: Hourly Vacation | E26: 91.5 | G26: 14.5 | I26: 1258.75 | K26: 189 | M26: 19.75 | O26: 3534.02 | Q26: 8 | S26: 14.5 | U26: 116 | AA26: 0 | AC26: 136 | AE26: 18.5 | AG26: 2448 | AI26: 63.5 | AK26: 14 | AM26: 889 | AS26: 0 | AY26: 0 | BA26: 87 | BC26: 18 | BE26: 1578.75 | BG26: 28 | BI26: 13 | BK26: 364 | BQ26: 0 | BW26: 0 | CC26: 0 | CE26: 48 | CG26: 13 | CI26: 624 | CK26: 184 | CM26: 18.35 | CO26: 3280.4 | CQ26: 146 | CS26: 18.5 | CU26: 2600 | DA26: 0 | DC26: 112 | DE26: 18.75 | DG26: 1992 | DI26: 1093 | DM26: 18684.92
D27: OVERTIME 1000-722 MAINT/PUMP | I27: 0 | O27: 0 | Q27: 19 | S27: 21.75 | U27: 413.25 | AA27: 0 | AG27: 0 | AM27: 0 | AS27: 0 | AY27: 0 | BE27: 0 | BK27: 0 | BQ27: 0 | BW27: 0 | CC27: 0 | CI27: 0 | CO27: 0 | CU27: 0 | DA27: 0 | DG27: 0 | DI27: 19 | DM27: 413.25
D28: OVERTIME 1000-724 MAINT DIST | E28: 6 | G28: 20.25 | I28: 121.5 | O28: 0 | U28: 0 | AA28: 0 | AC28: 4.5 | AE28: 26.25 | AG28: 118.13 | AI28: 9.5 | AK28: 21 | AM28: 199.5 | AS28: 0 | AY28: 0 | BA28: 5 | BC28: 27 | BE28: 135 | BG28: 5 | BI28: 19.5 | BK28: 97.5 | BQ28: 0 | BW28: 0 | CC28: 0 | CE28: 5 | CG28: 19.5 | CI28: 97.5 | CO28: 0 | CQ28: 13.5 | CS28: 26.25 | CU28: 354.38 | DA28: 0 | DG28: 0 | DI28: 48.5 | DM28: 1123.51
D29: OVERTIME 1000-726 MAINT SVC MET | E29: 12 | G29: 20.25 | I29: 243 | O29: 0 | U29: 0 | AA29: 0 | AC29: 2 | AE29: 26.25 | AG29: 52.5 | AM29: 0 | AS29: 0 | AY29: 0 | BE29: 0 | BK29: 0 | BQ29: 0 | BW29: 0 | CC29: 0 | CI29: 0 | CO29: 0 | CQ29: 5 | CS29: 26.25 | CU29: 131.25 | DA29: 0 | DG29: 0 | DI29: 19 | DM29: 426.75
D30: OVERTIME 1000-802 COLLECT/ADMIN | E30: 2 | G30: 20.25 | I30: 40.5 | O30: 0 | Q30: 19.5 | S30: 21.75 | U30: 424.13 | AA30: 0 | AG30: 0 | AI30: 3 | AK30: 21 | AM30: 63 | AS30: 0 | AY30: 0 | BA30: 7.5 | BC30: 27 | BE30: 202.5 | BG30: 2 | BI30: 19.5 | BK30: 39 | BQ30: 0 | BW30: 0 | CC30: 0 | CI30: 0 | CK30: 32 | CM30: 27.53 | CO30: 860.73 | CQ30: 6 | CS30: 26.25 | CU30: 157.5 | DA30: 0 | DC30: 1.5 | DE30: 28.13 | DG30: 41.07 | DI30: 73.5 | DM30: 1828.43
D31: OVERTIME 1000-820 MAINT GENERAL | E31: 11 | G31: 20.25 | I31: 225.75 | O31: 0 | Q31: 2 | S31: 21.75 | U31: 43.5 | AA31: 0 | AG31: 0 | AM31: 0 | AS31: 0 | AY31: 0 | BE31: 0 | BK31: 0 | BQ31: 0 | BW31: 0 | CC31: 0 | CI31: 0 | CO31: 0 | CU31: 0 | DA31: 0 | DG31: 0 | DI31: 13 | DM31: 269.25
D32: OVERTIME 2000-722 MAINT/PUMPING | I32: 0 | O32: 0 | U32: 0 | AA32: 0 | AC32: 2 | AE32: 26.25 | AG32: 52.5 | AM32: 0 | AS32: 0 | AY32: 0 | BA32: 3 | BC32: 27 | BE32: 81 | BK32: 0 | BQ32: 0 | BW32: 0 | CC32: 0 | CI32: 0 | CO32: 0 | CQ32: 3 | CS32: 26.25 | CU32: 78.75 | DA32: 0 | DG32: 0 | DI32: 8 | DM32: 212.25
D33: OVERTIME 2000-724 MAIN DIS MAIN | E33: 12.5 | G33: 21.75 | I33: 260.63 | O33: 0 | Q33: 5 | S33: 21.75 | U33: 108.75 | AA33: 0 | AC33: 15.5 | AE33: 26.25 | AG33: 406.88 | AI33: 7.5 | AK33: 21 | AM33: 157.5 | AS33: 0 | AY33: 0 | BA33: 10 | BC33: 27 | BE33: 270 | BG33: 20.5 | BI33: 19.5 | BK33: 399.75 | BQ33: 0 | BW33: 0 | CC33: 0 | CE33: 7 | CG33: 19.5 | CI33: 136.5 | CO33: 0 | CQ33: 3.5 | CS33: 26.25 | CU33: 91.88 | DA33: 0 | DG33: 0 | DI33: 81.5 | DM33: 1831.89
D34: OVERTIME 2000-726 MAINT SVC MTR | I34: 0 | O34: 0 | U34: 0 | AA34: 0 | AC34: 2 | AE34: 26.25 | AG34: 52.5 | AI34: 2 | AK34: 21 | AM34: 42 | AS34: 0 | AY34: 0 | BE34: 0 | BK34: 0 | BQ34: 0 | BW34: 0 | CC34: 0 | CI34: 0 | CO34: 0 | CU34: 0 | DA34: 0 | DG34: 0 | DI34: 4 | DM34: 94.5
D35: OVERTIME 2000-802 COLLECT/ADMIN | E35: 1 | G35: 20.25 | I35: 20.25 | O35: 0 | U35: 0 | AA35: 0 | AC35: 3 | AE35: 27.75 | AG35: 81.75 | AM35: 0 | AS35: 0 | AY35: 0 | BA35: 2 | BC35: 27 | BE35: 54 | BK35: 0 | BQ35: 0 | BW35: 0 | CC35: 0 | CI35: 0 | CK35: 2 | CM35: 26.03 | CO35: 52.06 | CQ35: 17 | CS35: 26.25 | CU35: 446.26 | DA35: 0 | DG35: 0 | DI35: 25 | DM35: 654.32
D36: 812-COMMISSION MEMBER FEES | I36: 0 | O36: 0 | U36: 0 | AA36: 600 | AG36: 0 | AM36: 0 | AS36: 0 | AY36: 0 | BE36: 0 | BK36: 0 | BQ36: 0 | BW36: 4200 | CC36: 1600 | CI36: 0 | CO36: 0 | CU36: 0 | DA36: 0 | DG36: 0 | DM36: 6400
D37: Bonus | I37: 0 | O37: 1000 | U37: 500 | AA37: 0 | AG37: 1000 | AM37: 250 | AS37: 2100 | AY37: 250 | BE37: 1000 | BK37: 500 | BQ37: 1300 | BW37: 0 | CC37: 0 | CI37: 500 | CO37: 4758.8 | CU37: 1000 | DA37: 1100 | DG37: 1000 | DM37: 16258.8
D38: Retro-active check | I38: 0 | O38: 720 | U38: 0 | AA38: 0 | AG38: 514.25 | AM38: 0 | AS38: 820.8 | AY38: 0 | BE38: 783 | BK38: 0 | BQ38: 700.8 | BW38: 0 | CC38: 0 | CI38: 0 | CO38: 498 | CU38: 516.5 | DA38: 700.8 | DG38: 720 | DM38: 5974.15
C39: Total Gross Pay | E39: =ROUND(SUM(E4:E38),5) -> 1322.5 | I39: =ROUND(SUM(I4:I38),5) -> 18492.13 | K39: =ROUND(SUM(K4:K38),5) -> 2122 | O39: =ROUND(SUM(O4:O38),5) -> 41348.8 | Q39: =ROUND(SUM(Q4:Q38),5) -> 1177.5 | U39: =ROUND(SUM(U4:U38),5) -> 17903.63 | AA39: =ROUND(SUM(AA4:AA38),5) -> 600 | AC39: =ROUND(SUM(AC4:AC38),5) -> 2166 | AG39: =ROUND(SUM(AG4:AG38),5) -> 40276.01 | AI39: =ROUND(SUM(AI4:AI38),5) -> 1238 | AM39: =ROUND(SUM(AM4:AM38),5) -> 17736 | AS39: =ROUND(SUM(AS4:AS38),5) -> 83951.71 | AU39: =ROUND(SUM(AU4:AU38),5) -> 545 | AY39: =ROUND(SUM(AY4:AY38),5) -> 7335 | BA39: =ROUND(SUM(BA4:BA38),5) -> 2163 | BE39: =ROUND(SUM(BE4:BE38),5) -> 41864.5 | BG39: =ROUND(SUM(BG4:BG38),5) -> 1193.5 | BK39: =ROUND(SUM(BK4:BK38),5) -> 16194.25 | BQ39: =ROUND(SUM(BQ4:BQ38),5) -> 64031.75 | BW39: =ROUND(SUM(BW4:BW38),5) -> 4200 | CC39: =ROUND(SUM(CC4:CC38),5) -> 1600 | CE39: =ROUND(SUM(CE4:CE38),5) -> 1226 | CI39: =ROUND(SUM(CI4:CI38),5) -> 16516 | CK39: =ROUND(SUM(CK4:CK38),5) -> 2164.5 | CO39: =ROUND(SUM(CO4:CO38),5) -> 43744.27 | CQ39: =ROUND(SUM(CQ4:CQ38),5) -> 2207 | CU39: =ROUND(SUM(CU4:CU38),5) -> 41167.02 | DA39: =ROUND(SUM(DA4:DA38),5) -> 59754.46 | DC39: =ROUND(SUM(DC4:DC38),5) -> 2125 | DG39: =ROUND(SUM(DG4:DG38),5) -> 39296.73 | DI39: =ROUND(E39+K39+Q39+W39+AC39+AI39+AO39+AU39+BA39+BG39+BM39+BS39+BY39+CE39+CK39+CQ39+CW39+DC39,5) -> 19650 | DM39: 556012.26
C40: Deductions from Gross Pay
D41: Aflac pre-tax | I41: -67.14 | O41: -911.07 | U41: 0 | AA41: 0 | AG41: -470.64 | AM41: 0 | AS41: -725.04 | AY41: 0 | BE41: -1638.23 | BK41: 0 | BQ41: 0 | BW41: 0 | CC41: 0 | CI41: 0 | CO41: -486.54 | CU41: 0 | DA41: -876.62 | DG41: -818.85 | DM41: =ROUND(I41+O41+U41+AA41+AG41+AM41+AS41+AY41+BE41+BK41+BQ41+BW41+CC41+CI41+CO41+CU41+DA41+DG41,5) -> -5994.13
D42: Colonial LIfe - pretax | I42: 0 | O42: 0 | U42: 0 | AA42: 0 | AG42: 0 | AM42: 0 | AS42: -417.64 | AY42: 0 | BE42: 0 | BK42: 0 | BQ42: 0 | BW42: 0 | CC42: 0 | CI42: 0 | CO42: 0 | CU42: 0 | DA42: 0 | DG42: 0 | DM42: -417.64
D43: Deferred Compensation | I43: 0 | O43: -927.5 | U43: -50 | AA43: 0 | AG43: 0 | AM43: 0 | AS43: -1060 | AY43: 0 | BE43: 0 | BK43: 0 | BQ43: -5150 | BW43: 0 | CC43: 0 | CI43: 0 | CO43: -795 | CU43: -927.5 | DA43: -795 | DG43: -1060 | DM43: -10765
D44: Liberty National pretax | I44: 0 | O44: -293.62 | U44: 0 | AA44: 0 | AG44: 0 | AM44: -199.29 | AS44: 0 | AY44: 0 | BE44: 0 | BK44: 0 | BQ44: 0 | BW44: 0 | CC44: 0 | CI44: 0 | CO44: 0 | CU44: -664.38 | DA44: 0 | DG44: -293.62 | DM44: -1450.91
D45: Retirement - Employee | I45: -1109.56 | O45: -2067.44 | U45: -625.53 | AA45: 0 | AG45: -2416.58 | AM45: -749.28 | AS45: -4197.48 | AY45: -31.2 | BE45: -2093.23 | BK45: -534.66 | BQ45: -3201.56 | BW45: 0 | CC45: 0 | CI45: -596.28 | CO45: -2187.22 | CU45: -2470.05 | DA45: -2987.89 | DG45: -1964.84 | DM45: -27232.8
C46: Total Deductions from Gross Pay | I46: =ROUND(SUM(I40:I45),5) -> -1176.7 | O46: =ROUND(SUM(O40:O45),5) -> -4199.63 | U46: =ROUND(SUM(U40:U45),5) -> -675.53 | AA46: =ROUND(SUM(AA40:AA45),5) -> 0 | AG46: =ROUND(SUM(AG40:AG45),5) -> -2887.22 | AM46: =ROUND(SUM(AM40:AM45),5) -> -948.57 | AS46: =ROUND(SUM(AS40:AS45),5) -> -6400.16 | AY46: =ROUND(SUM(AY40:AY45),5) -> -31.2 | BE46: =ROUND(SUM(BE40:BE45),5) -> -3731.46 | BK46: =ROUND(SUM(BK40:BK45),5) -> -534.66 | BQ46: =ROUND(SUM(BQ40:BQ45),5) -> -8351.56 | BW46: =ROUND(SUM(BW40:BW45),5) -> 0 | CC46: =ROUND(SUM(CC40:CC45),5) -> 0 | CI46: =ROUND(SUM(CI40:CI45),5) -> -596.28 | CO46: =ROUND(SUM(CO40:CO45),5) -> -3468.76 | CU46: =ROUND(SUM(CU40:CU45),5) -> -4061.93 | DA46: =ROUND(SUM(DA40:DA45),5) -> -4659.51 | DG46: =ROUND(SUM(DG40:DG45),5) -> -4137.31 | DM46: -45860.48
B47: Adjusted Gross Pay | E47: =ROUND(E39+E46,5) -> 1322.5 | I47: =ROUND(I39+I46,5) -> 17315.43 | K47: =ROUND(K39+K46,5) -> 2122 | O47: =ROUND(O39+O46,5) -> 37149.17 | Q47: =ROUND(Q39+Q46,5) -> 1177.5 | U47: =ROUND(U39+U46,5) -> 17228.1 | AA47: =ROUND(AA39+AA46,5) -> 600 | AC47: =ROUND(AC39+AC46,5) -> 2166 | AG47: =ROUND(AG39+AG46,5) -> 37388.79 | AI47: =ROUND(AI39+AI46,5) -> 1238 | AM47: =ROUND(AM39+AM46,5) -> 16787.43 | AS47: =ROUND(AS39+AS46,5) -> 77551.55 | AU47: =ROUND(AU39+AU46,5) -> 545 | AY47: =ROUND(AY39+AY46,5) -> 7303.8 | BA47: =ROUND(BA39+BA46,5) -> 2163 | BE47: =ROUND(BE39+BE46,5) -> 38133.04 | BG47: =ROUND(BG39+BG46,5) -> 1193.5 | BK47: =ROUND(BK39+BK46,5) -> 15659.59 | BQ47: =ROUND(BQ39+BQ46,5) -> 55680.19 | BW47: =ROUND(BW39+BW46,5) -> 4200 | CC47: =ROUND(CC39+CC46,5) -> 1600 | CE47: =ROUND(CE39+CE46,5) -> 1226 | CI47: =ROUND(CI39+CI46,5) -> 15919.72 | CK47: =ROUND(CK39+CK46,5) -> 2164.5 | CO47: =ROUND(CO39+CO46,5) -> 40275.51 | CQ47: =ROUND(CQ39+CQ46,5) -> 2207 | CU47: =ROUND(CU39+CU46,5) -> 37105.09 | DA47: =ROUND(DA39+DA46,5) -> 55094.95 | DC47: =ROUND(DC39+DC46,5) -> 2125 | DG47: =ROUND(DG39+DG46,5) -> 35159.42 | DI47: =ROUND(E47+K47+Q47+W47+AC47+AI47+AO47+AU47+BA47+BG47+BM47+BS47+BY47+CE47+CK47+CQ47+CW47+DC47,5) -> 19650 | DM47: 510151.78
B48: Taxes Withheld
C49: Federal Withholding | I49: -1673 | O49: -2003 | U49: -1111 | AA49: 0 | AG49: -3797 | AM49: -1596 | AS49: -11730 | AY49: -383 | BE49: -3904 | BK49: -904 | BQ49: -6921 | BW49: 0 | CC49: 0 | CI49: -899 | CO49: -4573 | CU49: -3764 | DA49: -4692 | DG49: -2309 | DM49: =ROUND(I49+O49+U49+AA49+AG49+AM49+AS49+AY49+BE49+BK49+BQ49+BW49+CC49+CI49+CO49+CU49+DA49+DG49,5) -> -50259
C50: Medicare Employee | I50: -267.16 | O50: -582.09 | U50: -259.6 | AA50: -8.7 | AG50: -577.18 | AM50: -254.28 | AS50: -1200.73 | AY50: -106.36 | BE50: -583.28 | BK50: -234.82 | BQ50: -928.46 | BW50: -60.9 | CC50: -23.2 | CI50: -239.48 | CO50: -627.24 | CU50: -587.29 | DA50: -853.73 | DG50: -553.67 | DM50: -7948.17
C51: Social Security Employee | I51: -1142.35 | O51: -2488.93 | U51: -1110.03 | AA51: -37.2 | AG51: -2467.93 | AM51: -1087.28 | AS51: -5134.16 | AY51: -454.77 | BE51: -2494.03 | BK51: -1004.04 | BQ51: -3969.97 | BW51: -260.4 | CC51: -99.2 | CI51: -1023.99 | CO51: -2681.98 | CU51: -2511.16 | DA51: -3650.43 | DG51: -2367.42 | DM51: -33985.27
C52: KY - Withholding | I52: -784.22 | O52: -1717.54 | U52: -784.95 | AA52: -18.96 | AG52: -1729.39 | AM52: -755.29 | AS52: -3737.33 | AY52: -324.39 | BE52: -1766.63 | BK52: -706.49 | BQ52: -2643.92 | BW52: -132.72 | CC52: 0 | CI52: -711.85 | CO52: -1873.72 | CU52: -1715.16 | DA52: -2614.73 | DG52: -1617.95 | DM52: -23635.24
C53: Medicare Employee Addl Tax | I53: 0 | O53: 0 | U53: 0 | AA53: 0 | AG53: 0 | AM53: 0 | AS53: 0 | AY53: 0 | BE53: 0 | BK53: 0 | BQ53: 0 | BW53: 0 | CC53: 0 | CI53: 0 | CO53: 0 | CU53: 0 | DA53: 0 | DG53: 0 | DM53: 0
C54: Shelby County Local Tax | I54: -183.64 | O54: -412.05 | U54: -179.06 | AA54: -6 | AG54: -400.99 | AM54: -176 | AS54: -836.67 | AY54: -73.35 | BE54: -417.18 | BK54: -161.95 | BQ54: -638.01 | BW54: -42 | CC54: -16 | CI54: -165.17 | CO54: -436.05 | CU54: -409.91 | DA54: -595.36 | DG54: -391.61 | DM54: -5541
B55: Total Taxes Withheld | I55: =ROUND(SUM(I48:I54),5) -> -4050.37 | O55: =ROUND(SUM(O48:O54),5) -> -7203.61 | U55: =ROUND(SUM(U48:U54),5) -> -3444.64 | AA55: =ROUND(SUM(AA48:AA54),5) -> -70.86 | AG55: =ROUND(SUM(AG48:AG54),5) -> -8972.49 | AM55: =ROUND(SUM(AM48:AM54),5) -> -3868.85 | AS55: =ROUND(SUM(AS48:AS54),5) -> -22638.89 | AY55: =ROUND(SUM(AY48:AY54),5) -> -1341.87 | BE55: =ROUND(SUM(BE48:BE54),5) -> -9165.12 | BK55: =ROUND(SUM(BK48:BK54),5) -> -3011.3 | BQ55: =ROUND(SUM(BQ48:BQ54),5) -> -15101.36 | BW55: =ROUND(SUM(BW48:BW54),5) -> -496.02 | CC55: =ROUND(SUM(CC48:CC54),5) -> -138.4 | CI55: =ROUND(SUM(CI48:CI54),5) -> -3039.49 | CO55: =ROUND(SUM(CO48:CO54),5) -> -10191.99 | CU55: =ROUND(SUM(CU48:CU54),5) -> -8987.52 | DA55: =ROUND(SUM(DA48:DA54),5) -> -12406.25 | DG55: =ROUND(SUM(DG48:DG54),5) -> -7239.65 | DM55: -121368.68
D57: JOB TITLE: | E57: SERVICE TECH | K57: Administrative Assistant II | Q57: Meter Reader | W57: Board Member | AC57: Service Technician | AI57: Service Technician | AO57: Manager | AU57: Service Technician | BA57: Service Technician | BG57: Meter Reader | BM57: Assistant Manager | BS57: Board Member | BY57: Board Member | CE57: Service Technician | CK57: Service Technician | CQ57: Service Technician | CW57: Office Manager | DC57: Aministrative Assistant
D58: HIRE DATE / TERMINATION DATE: | E58: TERMINATION DATE: 8-5-2020 | K58: Hire Date: 7-21-2004 | Q58: Hire Date: 6/16/2020 | AC58: Hire Date: 4/29/2011 | AI58: Termination Date: 7-15-2021 | AO58: Hire Date: 4/1/1999 | AU58: Termination Date: 7-15-2021 | BA58: Hire Date: 2-5-2006 | BG58: Hire Date: 6-15-2020 | BM58: Hire Date: 1-3-2002 | BS58: deceased | CE58: Termination Date: 2-4-2021 | CK58: Hire Date: 3-11-2005 | CQ58: Hire Date: 5-27-2011 | CW58: Hire Date: 6-1-1998 | DC58: Hire Date: 2-12-2007
